bitfinex-derivatives/quotes_ETHF0:USTF0_20251021
["timestamp","ask_amount","ask_price","bid_price","bid_amount"]
[1761078899891,4.44952,3946.6,3946.5,0.5460489]
[1761078900081,4.44952,3946.6,3946.5,0.7598489]
[1761078900383,1.2059,3947.0,3946.9,0.7577]
[1761078900588,2.44607,3947.0,3946.9,0.7577]
[1761078900792,1.24017,3947.0,3946.9,0.7577]
[1761078900995,1.24017,3947.0,3946.9,0.2112]
[1761078901293,1.2402,3946.8,3946.7,9.723]
[1761078901681,1.24022,3946.6,3946.5,0.0021489]
[1761078901995,3.66372,3946.6,3946.5,0.8998489]
[1761078902290,3.89082,3946.6,3946.5,0.8998489]
[1761078902892,3.4349,3946.6,3946.5,0.8998489]
[1761078903188,1.13958,3947.4,3946.5,0.8998489]
[1761078903189,1.2402,3946.8,3946.7,0.5439]
[1761078903389,3.6637,3946.8,3946.7,0.7577]
[1761078903594,3.2078,3946.8,3946.7,0.7577]
[1761078903996,3.8908,3946.8,3946.7,0.7577]
[1761078905597,4.448,3946.8,3946.7,0.7577]
[1761078906694,3.6637,3946.8,3946.7,0.7577]
[1761078907089,4.448,3946.8,3946.7,0.7577]
[1761078907494,4.1088,3946.8,3946.7,0.7577]
[1761078907993,3.6529,3946.8,3946.7,0.7577]
[1761078908195,3.2078,3946.8,3946.7,1.21361]
[1761078908403,3.2078,3946.8,3946.7,0.7577]
[1761078909401,3.4349,3947.3,3947.2,0.7577]
[1761078909696,3.9921,3947.3,3946.5,0.1421489]
[1761078909902,1.24016,3947.1,3947.0,0.5439]
[1761078910403,0.7843,3947.1,3947.0,0.7577]
[1761078910705,3.4349,3947.3,3947.2,0.7577]
[1761078911402,3.89074,3947.3,3947.2,0.7577]
[1761078911700,4.44794,3947.3,3947.2,0.7577]
[1761078911902,3.4349,3947.3,3947.2,0.7577]
[1761078912494,3.2078,3947.3,3947.2,0.7577]
[1761078912693,1.2043,3947.7,3947.6,1.21351]
[1761078915098,1.2043,3947.7,3947.6,6.21351]
[1761078917207,1.2043,3947.7,3947.6,15.49951]
[1761078923008,3.43564423,3948.7,3948.6,0.7698]
[1761078923203,3.89132423,3948.7,3948.6,0.7698]
[1761078923409,0.68352423,3948.7,3948.6,0.7698]
[1761078923618,0.45571,3948.5,3948.3,9.6118]
[1761078923799,0.764,3948.4,3948.3,9.718]
[1761078924006,0.4365,3948.4,3948.3,9.718]
[1761078924205,0.4365,3948.4,3948.3,10.0498]
[1761078924910,0.2259,3948.6,3948.5,0.9048]
[1761078925107,0.764,3948.6,3948.5,0.97355149]
[1761078925306,0.764,3948.6,3948.5,0.74955149]
[1761078926211,0.45571,3948.4,3948.3,9.28]
[1761078926403,1.21971,3948.4,3948.3,9.28]
[1761078926603,6.21971,3948.4,3948.3,9.28]
[1761078926803,6.21971,3948.4,3947.5,0.354]
[1761078926804,0.764,3947.6,3947.5,0.354]
[1761078927110,1.21984,3947.3,3947.2,0.75656514]
[1761078927310,1.21984,3947.3,3947.2,8.6658]
[1761078927311,4.42764,3947.3,3947.2,8.6658]
[1761078927813,4.42764,3947.3,3947.2,8.334]
[1761078928614,4.42764,3947.3,3947.2,8.12]
[1761078929905,4.42764,3947.3,3947.2,8.6658]
[1761078931912,4.42764,3947.3,3947.2,8.8898]
[1761078934818,3.2078,3947.7,3947.6,0.7698]
[1761078935122,0.764,3947.4,3947.3,0.438]
[1761078935318,1.21983,3947.4,3947.3,0.438]
[1761078935710,1.21983,3947.4,3947.3,0.7698]
[1761078936112,0.764,3947.4,3947.3,0.7698]
[1761078936322,0.2259,3947.4,3947.3,1.22564]
[1761078936621,0.2259,3947.4,3947.3,0.7698]
[1761078937519,3.4337,3947.7,3947.3,0.438]
[1761078937825,3.2078,3948.1,3948.0,0.135]
[1761078938011,0.2259,3948.1,3948.0,0.135]
[1761078938214,1.21975,3948.1,3948.0,0.573]
[1761078938523,1.21975,3948.1,3948.0,0.7698]
[1761078938717,3.2078,3948.3,3948.0,0.9048]
[1761078938917,0.90966,3948.0,3947.9,9.27]
[1761078939127,1.34616,3948.0,3947.9,9.27]
[1761078939624,1.21984,3947.3,3947.2,10.0388]
[1761078940728,1.21984,3947.3,3947.2,9.269]
[1761078941832,0.5534,3947.1,3946.5,0.5751489]
[1761078942033,3.9718,3947.1,3946.5,0.5751489]
[1761078942231,0.68178,3947.0,3946.6,0.3318]
[1761078942432,0.68178,3947.0,3946.9,0.7698]
[1761078942626,0.89238,3947.0,3946.9,0.7698]
[1761078942826,1.21988,3947.0,3946.9,0.7698]
[1761078943026,0.4365,3947.0,3946.9,0.7698]
[1761078943227,0.764,3947.0,3946.9,0.7698]
[1761078944334,3.2078,3947.1,3946.9,0.7698]
[1761078944539,3.4337,3947.1,3947.0,0.9048]
[1761078949033,3.4337,3947.1,3946.5,0.7719489]
[1761078949034,0.764,3946.6,3946.5,0.7719489]
[1761078949342,0.5534,3946.9,3946.8,0.7698]
[1761078949541,0.764,3946.9,3946.8,0.7698]
[1761078949743,0.45584,3947.3,3947.2,0.214]
[1761078949935,1.21984,3947.3,3947.2,0.7698]
[1761078950133,0.764,3947.3,3947.2,0.5458]
[1761078950333,1.21984,3947.3,3947.2,0.5458]
[1761078950840,1.21984,3947.3,3947.2,0.7698]
[1761078952645,0.764,3947.3,3947.2,0.7698]
[1761078953543,3.2078,3947.5,3947.4,0.7831]
[1761078953744,3.2078,3947.5,3947.4,10.0431]
[1761078955146,0.4427,3948.1,3948.0,0.5635]
[1761078955350,0.4427,3948.1,3948.0,0.9107]
[1761078955550,0.2151,3948.1,3948.0,0.9107]
[1761078955756,3.2078,3948.3,3948.2,0.7831]
[1761078956750,0.21704423,3948.7,3948.6,0.7831]
[1761078957148,0.00194423,3948.7,3948.6,0.7831]
[1761078957538,0.21704423,3948.7,3948.6,0.7831]
[1761078958553,0.00194423,3948.7,3948.6,0.7831]
[1761078961749,0.00194423,3948.7,3948.6,5.7831]
[1761078961958,3.2078,3949.9,3949.8,0.7831]
[1761078962151,3.2078,3949.9,3949.8,10.0361]
[1761078962753,3.2078,3950.8,3950.7,0.7831]
[1761078962951,3.2101972,3950.8,3950.7,0.7855521]
[1761078963158,3.2101972,3950.8,3950.7,0.98712499]
[1761078963345,3.4252972,3950.8,3950.7,0.7855521]
[1761078963549,4.0013972,3950.8,3950.7,0.7855521]
[1761078964854,3.6528972,3950.8,3950.7,0.7855521]
[1761078965051,3.2101972,3950.8,3950.7,0.7855521]
[1761078965355,4.0013972,3950.8,3950.7,0.7855521]
[1761078965857,3.6528972,3950.8,3950.7,0.7855521]
[1761078966059,0.4450972,3950.8,3950.7,0.7855521]
[1761078966459,0.0023972,3950.8,3950.7,0.7855521]
[1761078967054,0.0023972,3950.8,3950.7,0.2246521]
[1761078967055,0.7935972,3950.8,3950.7,0.2246521]
[1761078967357,4.0013972,3950.8,3950.7,0.0024521]
[1761078967560,4.0013972,3950.8,3950.7,0.5718521]
[1761078969565,9.0013972,3950.8,3950.7,0.0024521]
[1761078970062,4.0013972,3950.8,3950.7,0.2246521]
[1761078970368,4.0013972,3950.8,3950.7,0.7855521]
[1761078970756,3.6528972,3950.8,3950.7,0.7855521]
[1761078970960,3.4252972,3950.8,3950.7,0.7855521]
[1761078971270,4.0013972,3950.8,3950.7,0.0024521]
[1761078972382,9.0013972,3950.8,3950.7,0.0024521]
[1761078975356,0.45558,3949.6,3949.4,0.2222]
[1761078975561,0.4427,3949.5,3949.4,1.44693238]
[1761078975761,0.4427,3949.5,3949.4,0.7831]
[1761078975966,1.2468,3949.4,3949.3,9.24]
[1761078976267,0.45574,3948.2,3947.9,3.2078]
[1761078976462,0.3485,3948.0,3947.9,9.5862]
[1761078976669,0.35073681,3948.0,3947.9,9.5862]
[1761078976866,0.00223681,3948.0,3947.9,9.5887232]
[1761078977365,0.00223681,3948.0,3947.9,9.78946607]
[1761078977572,0.00223681,3948.0,3947.9,9.5887232]
[1761078979373,0.21413681,3948.0,3947.9,9.8224232]
[1761078979669,0.21413681,3948.0,3947.9,10.0527232]
[1761078979670,0.00223681,3948.0,3947.9,10.0527232]
[1761078980065,0.76243681,3948.0,3947.9,10.0527232]
[1761078980270,0.76243681,3948.0,3947.9,9.4752232]
[1761078980566,0.21413681,3948.0,3947.9,10.0472232]
[1761078981769,0.00223681,3948.0,3947.9,10.0472232]
[1761078981961,0.88197337,3950.4,3949.0,0.5834]
[1761078981962,3.2078,3949.6,3949.0,0.5834]
[1761078982164,3.4238,3949.6,3949.5,0.9091]
[1761078982862,3.2078,3949.6,3949.5,0.9091]
[1761078983058,3.42561944,3949.6,3949.5,0.9091]
[1761078983267,0.00181944,3949.6,3949.5,0.453]
[1761078985877,0.3197,3949.5,3949.2,0.3257]
[1761078986073,0.45739944,3949.6,3949.2,0.3257]
[1761078986577,0.00181944,3949.6,3949.5,0.453]
[1761078986774,0.76441944,3949.6,3949.5,0.5481]
[1761078986978,0.216,3949.3,3949.2,0.7818]
[1761078987173,0.00181944,3949.6,3949.5,0.9091]
[1761078989272,0.00181944,3949.6,3949.5,4.57249]
[1761078990069,0.00181944,3949.6,3949.5,9.57249]
[1761078991779,0.00181944,3949.6,3949.5,18.80349]
[1761078992569,3.2078,3950.8,3950.3,0.5594]
[1761078992771,3.2078,3950.8,3950.7,0.7818]
[1761078992978,3.87924,3950.8,3950.7,0.7818]
[1761078993176,4.42584,3950.8,3950.7,0.7818]
[1761078993380,1.21804,3950.8,3950.7,0.7818]
[1761078993582,1.22008913,3950.8,3950.7,0.78357492]
[1761078994982,0.00204913,3950.8,3950.7,1.23902492]
[1761078995184,0.44494913,3950.8,3950.7,0.78357492]
[1761078995388,0.216,3949.5,3949.4,0.2224]
[1761078995594,0.77532,3949.2,3949.1,6.9857]
[1761078995775,0.77532,3949.2,3949.1,6.66]
[1761078996285,0.77532,3949.2,3949.1,6.66178022]
[1761078996482,3.2078,3949.8,3949.2,0.3257]
[1761078996673,0.3197,3949.7,3949.2,0.3257]
[1761078997486,0.45561,3949.3,3949.2,0.3257]
[1761078997786,0.45561,3949.3,3949.2,1.4713]
[1761078999380,0.67161,3949.3,3949.2,1.9274]
[1761078999883,0.5357,3949.7,3949.6,0.5481]
[1761079000079,0.67156,3949.7,3949.6,0.7818]
[1761079001090,0.45556,3949.7,3949.6,10.0068]
[1761079001482,3.66335,3949.8,3949.6,10.0068]
[1761079001790,3.87935,3949.8,3949.7,0.7818]
[1761079003686,4.42595,3949.8,3949.7,0.7818]
[1761079004690,3.87935,3949.8,3949.7,0.7818]
[1761079005690,4.42595,3949.8,3949.7,0.7818]
[1761079006287,4.10625,3949.8,3949.7,0.7818]
[1761079007690,4.42595,3949.8,3949.7,0.7818]
[1761079008389,3.6507,3949.8,3949.7,0.7818]
[1761079008796,4.10625,3949.8,3949.7,0.7818]
[1761079012200,0.5541,3950.3,3949.8,0.80244]
[1761079012397,3.2078,3950.4,3950.3,0.3469]
[1761079012398,0.45549,3950.4,3950.3,0.3469]
[1761079012595,1.23189,3950.4,3950.3,9.7836]
[1761079012998,0.45547,3950.6,3950.5,0.9122]
[1761079013197,0.68017,3950.6,3950.5,0.9122]
[1761079014302,1.23187,3950.6,3950.5,0.9122]
[1761079014700,0.7764,3950.6,3950.5,0.9122]
[1761079014896,1.23186,3950.6,3950.5,0.9122]
[1761079016599,0.447,3950.6,3950.5,0.9122]
[1761079016799,1.23186,3950.6,3950.5,0.9122]
[1761079017595,1.23186,3950.6,3950.3,9.218]
[1761079017793,4.43968,3950.4,3950.3,9.218]
[1761079019399,4.43968,3950.4,3950.3,9.7836]
[1761079019605,4.43968,3950.4,3950.3,9.9949]
[1761079021398,3.66328,3950.4,3950.3,9.9949]
[1761079021597,0.00204913,3950.8,3950.7,0.7769]
[1761079021796,0.00204913,3950.8,3950.7,10.44435]
[1761079022003,3.66312,3951.9,3951.4,0.45536]
[1761079022308,1.23174,3951.6,3951.5,9.212]
[1761079022502,3.66315,3951.6,3951.1,0.8854]
[1761079022698,3.88784,3951.6,3951.5,9.7773]
[1761079022891,3.4325,3951.6,3951.5,9.7773]
[1761079023097,3.88784,3951.6,3951.5,10.1242]
[1761079023407,3.89059229,3951.6,3951.5,10.1242]
[1761079025908,0.00275229,3951.6,3951.5,10.57956]
[1761079026407,3.2078,3952.2,3951.5,14.5586]
[1761079026611,3.2078,3952.2,3952.1,0.7769]
[1761079026796,3.2078,3952.2,3952.1,9.9849]
[1761079027201,0.45523,3952.6,3952.5,0.9122]
[1761079027404,0.45523,3952.6,3952.5,10.1202]
[1761079027603,0.4552,3952.9,3952.7,0.7769]
[1761079028015,0.02385537,3952.8,3952.7,0.7769]
[1761079030415,0.02385537,3952.8,3952.7,9.0101807]
[1761079030604,0.45509,3953.9,3953.8,0.43]
[1761079030807,3.2078,3954.3,3954.2,0.7769]
[1761079030808,3.88753,3954.3,3954.2,0.7769]
[1761079031010,3.88753,3954.3,3954.2,9.9819]
[1761079031205,1.13743,3954.9,3954.2,9.635]
[1761079031206,0.3294,3954.9,3954.2,9.635]
[1761079031508,0.3294,3954.2,3953.7,0.5656]
[1761079031815,0.2247,3953.8,3953.7,0.7769]
[1761079032013,0.2247,3953.8,3953.7,6.2349]
[1761079032216,1.00916,3954.1,3953.8,0.3469]
[1761079032515,0.00219894,3954.2,3954.1,0.3469]
[1761079032706,0.00219894,3954.2,3954.1,9.9789]
[1761079033707,0.00219894,3954.2,3954.1,10.18180215]
[1761079034210,0.00219894,3954.2,3954.1,9.75180215]
[1761079035214,0.00219894,3954.2,3954.1,17.99861189]
[1761079036712,0.6796,3955.5,3955.1,0.3469]
[1761079036916,3.66269,3955.6,3955.5,0.9122]
[1761079037114,3.2078,3955.6,3955.5,0.9122]
[1761079037411,3.4325,3956.0,3955.6,0.3469]
[1761079037615,3.20982156,3956.0,3955.9,0.7769]
[1761079038308,0.00202156,3956.0,3955.9,0.3469]
[1761079038515,0.00202156,3956.0,3955.9,3.5547]
[1761079039212,0.00202156,3956.0,3955.9,11.81306848]
[1761079039808,0.00202156,3956.0,3955.9,3.5547]
[1761079040213,0.35262156,3956.0,3955.9,0.3469]
[1761079040408,0.3506,3955.8,3955.7,9.198]
[1761079040613,0.3506,3955.8,3955.7,9.5263]
[1761079040812,0.00202156,3956.0,3955.8,0.3329]
[1761079041013,0.00202156,3956.0,3955.9,0.3329]
[1761079041221,0.00202156,3956.0,3955.9,3.67915148]
[1761079044321,0.00202156,3956.0,3955.9,4.12325148]
[1761079046208,0.7732,3957.2,3956.1,0.3329]
[1761079046517,0.7842,3956.7,3956.6,0.5648]
[1761079046823,0.7842,3956.7,3956.6,9.4189]
[1761079047017,8.992,3956.7,3956.6,9.187]
[1761079047222,8.99415844,3956.7,3956.6,9.187]
[1761079048814,0.4657,3956.2,3956.1,9.186]
[1761079049025,1.23902,3956.2,3956.1,9.7508]
[1761079050021,0.7842,3956.2,3956.1,9.7508]
[1761079050223,0.4657,3956.2,3956.1,9.963]
[1761079050928,0.00215844,3956.7,3956.6,0.777]
[1761079051226,0.78635844,3956.7,3956.6,9.184]
[1761079051816,5.78635844,3956.7,3956.6,9.184]
[1761079052016,5.78635844,3956.7,3956.0,0.3329]
[1761079052017,0.2331,3956.1,3956.0,9.183]
[1761079052323,0.2331,3956.1,3956.0,9.6271]
[1761079052523,0.68793,3956.1,3956.0,9.6271]
[1761079052817,0.68793,3956.1,3956.0,9.96]
[1761079053224,0.68793,3956.1,3956.0,10.0881]
[1761079053425,0.68791,3956.3,3956.2,0.4441]
[1761079053616,0.68791,3956.3,3956.2,0.777]
[1761079054023,0.6879,3956.3,3956.2,0.777]
[1761079054221,1.239,3956.3,3956.2,0.777]
[1761079056728,0.9205,3956.3,3956.2,0.777]
[1761079056929,0.2331,3956.3,3956.2,0.777]
[1761079057130,0.6879,3956.3,3956.2,0.777]
[1761079057327,1.239,3956.3,3956.2,0.777]
[1761079057525,0.4548,3956.3,3956.2,0.777]
[1761079057826,1.239,3956.3,3956.2,0.777]
[1761079058930,0.45483,3956.1,3956.0,9.183]
[1761079059127,1.23903,3956.1,3956.0,9.183]
[1761079059328,1.82692649,3956.1,3956.0,9.183]
[1761079059728,1.82692649,3956.1,3956.0,9.7478]
[1761079059931,1.82692649,3956.1,3956.0,9.183]
[1761079061628,1.82692649,3956.1,3955.7,1.2376]
[1761079061629,1.23906,3955.8,3955.7,1.2376]
[1761079061835,1.82695649,3955.8,3955.7,1.2376]
[1761079062729,1.82695649,3955.8,3955.7,1.8024]
[1761079063029,1.82695649,3955.8,3955.7,1.2376]
[1761079064132,0.88197337,3956.5,3955.7,1.4498]
[1761079064330,0.2331,3955.9,3955.8,0.777]
[1761079064523,1.82860211,3955.9,3955.8,9.953]
[1761079065534,1.51010211,3955.9,3955.8,9.953]
[1761079066040,1.04440211,3955.9,3955.8,9.953]
[1761079067339,1.82860211,3955.9,3955.8,9.953]
[1761079067842,1.04440211,3955.9,3955.8,9.953]
[1761079068141,0.58955211,3955.9,3955.8,9.953]
[1761079068343,0.45481,3956.2,3956.1,0.777]
[1761079068544,1.04528491,3956.2,3956.1,9.952]
[1761079068838,0.59047491,3956.2,3956.1,9.952]
[1761079069044,1.04528491,3956.2,3956.1,9.952]
[1761079069237,0.45481,3956.2,3956.1,9.952]
[1761079070240,1.02793471,3956.2,3956.1,9.952]
[1761079070745,0.45481,3956.2,3956.1,9.952]
[1761079070946,0.68791,3956.2,3956.1,9.952]
[1761079071248,1.37281,3956.2,3956.1,9.952]
[1761079071438,0.68791,3956.2,3956.1,9.952]
[1761079071639,0.45481,3956.2,3956.1,9.952]
[1761079072546,0.74247,3956.6,3956.5,1.1549]
[1761079072747,1.02794452,3956.6,3956.5,1.1549]
[1761079072946,1.31564452,3956.6,3956.5,1.1549]
[1761079073147,0.86087452,3956.6,3956.5,1.1549]
[1761079073852,0.57317452,3956.6,3956.5,1.60968]
[1761079074045,0.9726,3956.6,3956.5,1.1549]
[1761079074250,1.01887,3956.6,3956.5,1.1549]
[1761079074439,0.86328,3956.5,3956.4,9.4527]
[1761079074644,2.16850126,3956.5,3956.4,9.173]
[1761079076152,2.00060126,3956.5,3956.4,9.8909]
[1761079076454,2.16850126,3956.5,3956.4,9.173]
[1761079076852,2.16850126,3956.5,3956.4,9.8909]
[1761079077052,2.00060126,3956.5,3956.4,9.8909]
[1761079077761,2.00060126,3956.5,3956.4,10.1622]
[1761079078145,2.16850126,3956.5,3956.4,9.173]
[1761079079250,2.00060126,3956.5,3956.4,9.8909]
[1761079080155,0.84962126,3956.5,3956.4,10.61699]
[1761079080358,1.42738,3956.5,3956.4,10.1622]
[1761079080847,3.20995844,3956.7,3956.6,1.44397]
[1761079081450,0.00215844,3956.7,3956.6,1.44397]
[1761079081852,0.00215844,3956.7,3956.6,1.65216769]
[1761079082365,0.00215844,3956.7,3956.6,0.9892]
[1761079082661,0.00215844,3956.7,3956.6,1.64634012]
[1761079082863,0.45691844,3956.7,3956.6,0.9892]
[1761079083163,0.00215844,3956.7,3956.6,0.9892]
[1761079083860,0.00215844,3956.7,3956.6,1.64357969]
[1761079086455,0.00215844,3956.7,3956.6,4.88424616]
[1761079086655,0.00215844,3956.7,3956.6,1.64357969]
[1761079088857,0.74237,3957.5,3957.2,0.4382]
[1761079089057,0.74237,3957.5,3957.4,0.9892]
[1761079089658,0.2877,3957.5,3957.4,0.9892]
[1761079089860,0.2877,3957.5,3957.2,9.6227]
[1761079089861,3.2078,3957.6,3957.5,1.60957]
[1761079090057,3.2101,3957.6,3957.5,10.3229]
[1761079090264,3.66475,3957.6,3957.5,10.3229]
[1761079090460,4.63735,3957.6,3957.5,10.3229]
[1761079090659,4.63735,3957.6,3957.5,9.168]
[1761079090861,9.63735,3957.6,3957.5,9.168]
[1761079093060,9.63735,3957.6,3957.5,9.4477]
[1761079093866,4.63735,3957.6,3957.5,0.2797]
[1761079094172,4.63735,3957.6,3957.1,6.082]
[1761079094173,0.9726,3957.2,3957.1,6.082]
[1761079094464,0.9726,3957.2,3956.8,0.4382]
[1761079094465,0.74243,3956.9,3956.8,7.0712]
[1761079094869,1.42733,3956.9,3956.8,7.0712]
[1761079095273,1.42733,3956.9,3956.8,6.633]
[1761079095772,1.42733,3956.9,3956.6,1.0237]
[1761079095773,1.42736,3956.7,3956.6,1.0237]
[1761079095962,4.63516,3956.7,3956.6,2.0129]
[1761079097168,4.63516,3956.7,3956.6,1.0237]
[1761079097370,4.63516,3956.7,3956.6,1.3034]
[1761079097573,4.63516,3956.7,3956.6,1.7416]
[1761079097869,4.63516,3956.7,3956.6,2.0129]
[1761079098266,4.63516,3956.7,3956.6,1.0237]
[1761079099267,3.95026,3956.7,3956.6,1.9143]
[1761079099765,4.59856,3956.7,3956.6,1.9143]
[1761079100566,4.59856,3956.7,3956.6,1.2735]
[1761079100767,4.59856,3956.7,3956.6,1.0237]
[1761079100970,4.59856,3956.7,3956.6,1.2786]
[1761079101167,4.59856,3956.7,3956.6,1.9201]
[1761079101574,4.60126,3956.7,3956.6,1.9201]
[1761079101775,4.60126,3956.7,3956.6,1.0237]
[1761079102168,4.20586,3956.7,3956.6,1.9201]
[1761079102478,4.60126,3956.7,3956.6,1.9201]
[1761079103264,4.60126,3956.7,3956.6,1.6652]
[1761079103583,4.60126,3956.7,3956.6,1.0237]
[1761079104378,0.94586,3955.8,3955.7,10.0594]
[1761079104684,1.34126,3955.8,3955.7,10.0594]
[1761079105272,1.34126,3955.8,3955.7,9.163]
[1761079105572,1.34127,3955.7,3955.6,0.00231329]
[1761079105966,1.34127,3955.7,3955.6,0.64541329]
[1761079106670,1.34127,3955.7,3955.6,0.89871329]
[1761079106870,0.94587,3955.7,3955.6,0.89871329]
[1761079107270,0.45487,3955.7,3955.6,0.89871329]
[1761079107474,0.69537,3955.7,3955.6,0.89871329]
[1761079108572,0.45487,3955.7,3955.6,0.89871329]
[1761079108772,0.69537,3955.7,3955.6,0.89871329]
[1761079108981,0.2405,3955.7,3955.6,0.89871329]
[1761079109371,0.2405,3955.9,3955.7,0.3882]
[1761079109573,0.69535,3955.9,3955.8,0.8964]
[1761079109877,1.34125,3955.9,3955.8,0.8964]
[1761079110173,0.94585,3955.9,3955.8,0.8964]
[1761079110573,0.45487,3955.7,3955.6,0.25721329]
[1761079110779,1.34127,3955.7,3955.6,0.64541329]
[1761079110982,1.34127,3955.7,3955.6,0.89871329]
[1761079111573,1.34127,3955.7,3955.6,0.00231329]
[1761079112369,1.34127,3955.7,3955.6,0.64541329]
[1761079112574,1.34127,3955.7,3955.6,0.89871329]
[1761079113075,1.34127,3955.7,3955.6,0.25721329]
[1761079113273,1.34127,3955.7,3955.6,0.00231329]
[1761079118181,1.34127,3955.7,3955.6,0.64541329]
[1761079118378,1.34127,3955.7,3955.6,0.89871329]
[1761079118578,1.34127,3955.7,3955.6,0.00231329]
[1761079119488,1.34127,3955.7,3955.6,0.64541329]
[1761079121585,1.34127,3955.7,3955.6,0.00231329]
[1761079121889,1.34127,3955.7,3955.6,0.64541329]
[1761079122682,1.34127,3955.7,3955.6,0.25721329]
[1761079123080,1.34127,3955.7,3955.6,0.64541329]
[1761079124193,1.34127,3955.7,3955.6,0.25721329]
[1761079124484,1.34127,3955.7,3955.6,0.00231329]
[1761079127786,1.34127,3955.7,3955.6,0.64541329]
[1761079128887,1.34127,3955.7,3955.6,0.00231329]
[1761079133291,1.91184184,3955.7,3955.6,0.00231329]
[1761079133702,1.34127,3955.7,3955.6,0.00231329]
[1761079134095,1.91202302,3955.7,3955.6,0.00231329]
[1761079138402,1.30032,3955.3,3955.2,0.3948]
[1761079139299,1.30032,3955.3,3955.2,0.39762325]
[1761079140606,1.30032,3955.3,3955.2,1.00012325]
[1761079141210,0.95052,3955.3,3955.2,1.23432325]
[1761079142197,1.30032,3955.3,3955.2,1.23432325]
[1761079142393,0.45502,3954.4,3954.3,1.96313906]
[1761079142703,1.30048,3953.9,3953.8,1.96313906]
[1761079142896,1.30048,3953.9,3953.8,0.6025]
[1761079143207,1.30048,3953.9,3953.8,0.8367]
[1761079143394,0.6488,3953.5,3953.2,1.36063906]
[1761079143594,0.45517,3953.1,3953.0,0.6025]
[1761079143796,0.45517,3953.1,3952.7,0.6025]
[1761079143797,1.05521,3952.8,3952.7,0.6025]
[1761079143994,1.30061,3952.8,3952.7,0.6025]
[1761079144202,40.8,3953.4,3952.7,0.8388643]
[1761079144395,1.30049,3953.8,3953.7,0.3686]
[1761079144595,1.30051,3953.6,3953.5,0.6025]
[1761079145094,1.30051,3953.6,3953.5,0.2339]
[1761079145496,1.30051,3953.6,3953.5,0.6025]
[1761079145699,1.30055,3953.3,3953.2,0.6025]
[1761079145998,0.8454,3953.3,3953.2,0.8367]
[1761079146199,0.8454,3953.0,3952.9,0.6025]
[1761079146404,0.8454,3953.0,3952.9,0.8367]
[1761079146807,1.30058,3953.0,3952.9,0.8367]
[1761079147302,1.30058,3953.0,3952.9,0.6025]
[1761079147606,1.30061,3952.8,3952.7,0.6046643]
[1761079147810,1.30061,3952.8,3952.7,0.2360643]
[1761079148008,1.30061,3952.8,3952.7,0.0021643]
[1761079149021,1.30061,3952.8,3952.7,0.8388643]
[1761079149211,3.91317,3953.1,3953.0,0.4681]
[1761079149519,3.458,3953.1,3953.0,0.9775]
[1761079150998,4.0532,3953.1,3952.7,0.3707643]
[1761079151205,0.8454,3952.8,3952.7,0.2360643]
[1761079151404,0.8454,3952.8,3952.7,0.4702643]
[1761079151604,0.4956,3952.8,3952.7,0.4702643]
[1761079151799,3.91318,3953.1,3953.0,0.9775]
[1761079152009,4.50838,3953.1,3953.0,0.8367]
[1761079152807,3.458,3953.1,3953.0,0.9775]
[1761079155513,4.0532,3953.1,3953.0,0.8367]
[1761079155720,0.70539,3952.9,3952.8,0.8367]
[1761079156013,0.2502,3952.9,3952.8,0.8367]
[1761079158013,3.2078,3953.1,3952.9,0.45519]
[1761079158316,3.458,3953.1,3953.0,0.9775]
[1761079159508,0.45515,3953.3,3953.1,0.45517]
[1761079159817,3.2078,3953.5,3953.0,0.6089]
[1761079159818,3.4436,3953.5,3953.4,0.7852]
[1761079160312,3.89873,3953.5,3953.4,0.7852]
[1761079160510,4.47983,3953.5,3953.4,0.7852]
[1761079163111,0.90767,3953.1,3953.0,0.5885]
[1761079163418,0.90767,3953.1,3952.7,0.0021643]
[1761079163419,1.25251,3952.8,3952.7,0.2251643]
[1761079163618,1.25251,3952.8,3952.7,1.2399843]
[1761079163918,0.90771,3952.8,3952.7,1.2399843]
[1761079164314,0.90771,3952.8,3952.7,0.7847643]
[1761079164711,1.25251,3952.8,3952.7,0.7847643]
[1761079166123,1.25251,3952.8,3952.7,0.2251643]
[1761079166516,1.25251,3952.8,3952.7,0.5600643]
[1761079166717,1.25251,3952.8,3952.7,0.0021643]
[1761079168224,1.25251,3952.8,3952.7,0.5600643]
[1761079168427,1.25251,3952.8,3952.7,0.0021643]
[1761079169418,1.25251,3952.8,3952.7,0.5600643]
[1761079170529,1.25251,3952.8,3952.7,0.7847643]
[1761079170822,0.67731,3952.8,3952.7,0.7847643]
[1761079171022,0.67727,3953.1,3953.0,0.9215]
[1761079172020,1.25247,3953.1,3953.0,0.9215]
[1761079173829,0.2221,3953.5,3953.0,4.1293]
[1761079174032,0.00243313,3953.9,3953.8,0.7826]
[1761079174331,3.4299,3954.8,3954.7,0.7826]
[1761079175233,3.43216039,3954.8,3954.7,0.7826]
[1761079175527,3.21006039,3954.8,3954.7,0.7826]
[1761079177435,3.43216039,3954.8,3954.7,0.7826]
[1761079179728,3.21006039,3954.8,3954.7,0.7826]
[1761079180036,0.00226039,3954.8,3954.7,0.7826]
[1761079180536,3.6603,3955.8,3955.5,0.45489]
[1761079180726,4.0051,3955.8,3955.7,0.7826]
[1761079181525,4.00784904,3955.8,3955.7,0.78556754]
[1761079181728,3.66304904,3955.8,3955.7,0.78556754]
[1761079182436,0.00274904,3955.8,3955.7,0.78556754]
[1761079183425,0.00274904,3955.8,3955.7,5.78556754]
[1761079185441,3.5526,3956.7,3956.6,0.7826]
[1761079185442,3.4299,3956.7,3956.6,0.7826]
[1761079185737,3.6603,3956.7,3956.6,0.7826]
[1761079186340,3.66340422,3956.7,3956.6,0.7826]